{"text_format":"1","workbook":"xlsx","n_sheets":3,"sheets":["Classement (2)","Analyse (2)","Topologie"],"not_rendered":{"charts":0,"images":2,"macros":1,"external_links":1,"defined_names":1,"comments":0,"pivot_tables":0},"unopened":[],"bounds":{"document_bytes":16777216,"sheet_cells":100000,"rows_first":2000,"rows_last":500,"rows_between":2000,"halvings":0,"cell_chars":16384,"cell_head_chars":4096},"cells_cut":0,"cells_raw":0,"read":"whole","date_system":"1900"}

{"sheet":"Classement (2)","index":0,"n_rows":22,"n_cols":6,"rows_kept":22,"cut":false,"hidden":false,"merged":[[0,1,0,5]]}
[null,"Classement Signaux Faibles 2022"]
[]
[]
[null,"Emetteur","Origine","Date","Intitulé","Thème"]
[null,"E","FDC 22-01","2022-01-10",888,"Affichage"]
[null,"B","FIR-MEM2_3-22-080","2021-10-21","VVV","Conditionnement  inadapté"]
[null,"C","CRS 010","2022-01-04","CCC","Conditionnement  inadapté"]
[null,"A","22-001","2022-01-10",111,"Dysfonctionnement équipement"]
[null,"D","CRR 21-XXX du xx/xx/2022","10-15/12/2021",333,"Incohérence documentation / réel"]
[null,"D","CRR 21-XXX du xx/xx/2022","10-15/12/2021",444,"Incohérence documentation / réel "]
[null,"C","CRS 009","2022-01-04",5555,"Incohérence documentation / réel "]
[null,"B","FIR-MEM2_3-22-015","2022-01-04",2222,"Inventaire non à jour"]
[null,"B","FIR-MEM2_3-22-068","2022-02-14",777,"Maintenance décalée"]
[null,"B","FIR-MEM2_3-22-016","2022-01-13",666,"Maintenance non réalisée"]
[null,"C","CRS 009","2022-01-04",999,"Propreté"]
[null,"C","CRS 009","2022-01-04",1000,"Propreté"]
[null,"C","CRS 010","2022-01-04","XXX","Propreté"]
[null,"C","CRS 009","2022-01-04","BBB","Signalisation sécurité"]
[null,"C","CRS 009","2022-01-04","FFF","Signalisation sécurité"]
[null,"C","CRS 010","2022-01-04","RRR","Signalisation sécurité"]
[null,"C","CRS 010","2022-01-04","YYY","Situation dangereuse /sécurité des personnes"]
[null,"F","02-123 2021 06","2021-11-30","TTT","Situation dangereuse /sécurité des personnes"]

{"sheet":"Analyse (2)","index":1,"n_rows":97,"n_cols":18,"rows_kept":97,"cut":false,"hidden":false,"merged":[]}
[null,null,null,null,"Analyse ","Signaux ","faibles",2022]
[]
[null,"Thème","Intitulé","Intitulé","Intitulé","Intitulé","Intitulé","Intitulé","Intitulé","Intitulé","Intitulé","Intitulé","Intitulé","Intitulé","Intitulé","Nombre","Analyse ","FEA (oui/non)"]
[null,"Affichage",888]
[null,"Conditionnement  inadapté","VVV","CCC"]
[null,"Dysfonctionnement équipement",111]
[null,"Incohérence documentation / réel",333]
[null,"Inventaire non à jour",2222]
[null,"Maintenance décalée",777]
[null,"Maintenance non réalisée",666]
[null,"Propreté",999,1000,"XXX"]
[null,"Signalisation sécurité","BBB","FFF","RRR"]
[null,"Situation dangereuse /sécurité des personnes","YYY","TTT"]
[]
[]
[]
[]
[]
[]
[]
[]
[]
[]
[]
[]
[]
[]
[]
[]
[]
[]
[]
[]
[null,null,null,null,null,null,null,null,null,null,null,null,null,null,null,{"$f":"COUNTA(C34:O34)","v":0}]
[null,null,null,null,null,null,null,null,null,null,null,null,null,null,null,0]
[null,null,null,null,null,null,null,null,null,null,null,null,null,null,null,0]
[null,null,null,null,null,null,null,null,null,null,null,null,null,null,null,0]
[null,null,null,null,null,null,null,null,null,null,null,null,null,null,null,0]
[null,null,null,null,null,null,null,null,null,null,null,null,null,null,null,0]
[null,null,null,null,null,null,null,null,null,null,null,null,null,null,null,0]
[null,null,null,null,null,null,null,null,null,null,null,null,null,null,null,0]
[null,null,null,null,null,null,null,null,null,null,null,null,null,null,null,0]
[null,null,null,null,null,null,null,null,null,null,null,null,null,null,null,0]
[null,null,null,null,null,null,null,null,null,null,null,null,null,null,null,0]
[null,null,null,null,null,null,null,null,null,null,null,null,null,null,null,0]
[null,null,null,null,null,null,null,null,null,null,null,null,null,null,null,0]
[null,null,null,null,null,null,null,null,null,null,null,null,null,null,null,0]
[null,null,null,null,null,null,null,null,null,null,null,null,null,null,null,0]
[null,null,null,null,null,null,null,null,null,null,null,null,null,null,null,0]
[null,null,null,null,null,null,null,null,null,null,null,null,null,null,null,0]
[null,null,null,null,null,null,null,null,null,null,null,null,null,null,null,0]
[null,null,null,null,null,null,null,null,null,null,null,null,null,null,null,0]
[null,null,null,null,null,null,null,null,null,null,null,null,null,null,null,0]
[null,null,null,null,null,null,null,null,null,null,null,null,null,null,null,0]
[null,null,null,null,null,null,null,null,null,null,null,null,null,null,null,0]
[null,null,null,null,null,null,null,null,null,null,null,null,null,null,null,0]
[null,null,null,null,null,null,null,null,null,null,null,null,null,null,null,0]
[null,null,null,null,null,null,null,null,null,null,null,null,null,null,null,0]
[null,null,null,null,null,null,null,null,null,null,null,null,null,null,null,0]
[null,null,null,null,null,null,null,null,null,null,null,null,null,null,null,0]
[null,null,null,null,null,null,null,null,null,null,null,null,null,null,null,0]
[null,null,null,null,null,null,null,null,null,null,null,null,null,null,null,0]
[null,null,null,null,null,null,null,null,null,null,null,null,null,null,null,0]
[null,null,null,null,null,null,null,null,null,null,null,null,null,null,null,0]
[null,null,null,null,null,null,null,null,null,null,null,null,null,null,null,0]
[null,null,null,null,null,null,null,null,null,null,null,null,null,null,null,0]
[null,null,null,null,null,null,null,null,null,null,null,null,null,null,null,0]
[null,null,null,null,null,null,null,null,null,null,null,null,null,null,null,0]
[null,null,null,null,null,null,null,null,null,null,null,null,null,null,null,{"$f":"COUNTA(C69:O69)","v":0}]
[null,null,null,null,null,null,null,null,null,null,null,null,null,null,null,0]
[null,null,null,null,null,null,null,null,null,null,null,null,null,null,null,0]
[null,null,null,null,null,null,null,null,null,null,null,null,null,null,null,0]
[null,null,null,null,null,null,null,null,null,null,null,null,null,null,null,0]
[null,null,null,null,null,null,null,null,null,null,null,null,null,null,null,0]
[null,null,null,null,null,null,null,null,null,null,null,null,null,null,null,0]
[null,null,null,null,null,null,null,null,null,null,null,null,null,null,null,0]
[null,null,null,null,null,null,null,null,null,null,null,null,null,null,null,0]
[null,null,null,null,null,null,null,null,null,null,null,null,null,null,null,0]
[null,null,null,null,null,null,null,null,null,null,null,null,null,null,null,0]
[null,null,null,null,null,null,null,null,null,null,null,null,null,null,null,0]
[null,null,null,null,null,null,null,null,null,null,null,null,null,null,null,0]
[null,null,null,null,null,null,null,null,null,null,null,null,null,null,null,0]
[null,null,null,null,null,null,null,null,null,null,null,null,null,null,null,0]
[null,null,null,null,null,null,null,null,null,null,null,null,null,null,null,0]
[null,null,null,null,null,null,null,null,null,null,null,null,null,null,null,0]
[null,null,null,null,null,null,null,null,null,null,null,null,null,null,null,0]
[null,null,null,null,null,null,null,null,null,null,null,null,null,null,null,0]
[null,null,null,null,null,null,null,null,null,null,null,null,null,null,null,0]
[null,null,null,null,null,null,null,null,null,null,null,null,null,null,null,0]
[null,null,null,null,null,null,null,null,null,null,null,null,null,null,null,0]
[null,null,null,null,null,null,null,null,null,null,null,null,null,null,null,0]
[null,null,null,null,null,null,null,null,null,null,null,null,null,null,null,0]
[null,null,null,null,null,null,null,null,null,null,null,null,null,null,null,0]
[null,null,null,null,null,null,null,null,null,null,null,null,null,null,null,0]
[null,null,null,null,null,null,null,null,null,null,null,null,null,null,null,0]
[null,null,null,null,null,null,null,null,null,null,null,null,null,null,null,0]
[null,null,null,null,null,null,null,null,null,null,null,null,null,null,null,0]

{"sheet":"Topologie","index":2,"n_rows":21,"n_cols":5,"rows_kept":21,"cut":false,"hidden":false,"merged":[]}
["Emetteur","Thème ",null,null,"Type écart"]
["A","Affichage","Oui ",null,"Anomalie (A)"]
["B","Atteinte/Dépassement limite d'entreposage","Non",null,"Mineur (B)"]
["C","Augmentation PCS",null,null,"Intéressant ( C) "]
["D","Conditionnement  inadapté",null,null,"Significatif (D)"]
["E","Documentation incomplète",null,null,"Amélioration"]
["F","Documentation non à jour",null,null,"S/O"]
["G","Dysfonctionnement équipement"]
["H","Erreur renseignement fiche remplissage"]
[null,"Incohérence documentation / réel"]
[null,"Inondation"]
[null,"Inventaire non à jour"]
[null,"Maintenance corrective"]
[null,"Maintenance décalée"]
[null,"Maintenance non réalisée"]
[null,"Mise à jour Gamme maintenance"]
[null,"Mise à jour Inventaire"]
[null,"Non respect des procédures"]
[null,"Propreté"]
[null,"Signalisation sécurité"]
[null,"Situation dangereuse /sécurité des personnes"]